bitfinex-derivatives/quotes_SOLF0:USTF0_20230901
["timestamp","ask_amount","ask_price","bid_price","bid_amount"]
[1693607126309,112.6,19.25,19.245,22.75724541]
[1693607131414,0.79165291,19.252,19.246,112.6]
[1693607139120,112.6,19.25,19.245,22.75724541]
[1693607140911,112.6,19.247,19.244,20.3933]
[1693607141113,112.6,19.245,19.237,112.6]
[1693607142023,112.6,19.245,19.234,20.5569]
[1693607142024,112.6,19.242,19.235,112.6]
[1693607152132,112.6,19.241,19.234,112.6]
[1693607157830,112.6,19.244,19.236,112.6]
[1693607159131,0.75920492,19.242,19.236,112.6]
[1693607160039,112.6,19.244,19.236,112.6]
[1693607160233,112.6,19.249,19.242,112.6]
[1693607167939,112.6,19.247,19.239,112.6]
[1693607172740,112.6,19.246,19.239,112.6]
[1693607178149,112.6,19.249,19.241,112.6]
[1693607179544,112.6,19.249,19.241,612.6]
[1693607179950,112.6,19.249,19.242,22.0133]
[1693607182055,112.6,19.251,19.244,112.6]
[1693607183456,112.6,19.254,19.247,112.6]
[1693607199274,112.6,19.255,19.248,112.6]
[1693607201978,112.6,19.253,19.246,112.6]
[1693607204977,0.45454546,19.261,19.249,112.6]
[1693607204978,112.6,19.256,19.249,112.6]
[1693607211976,0.45454546,19.261,19.245,24.1883847]
[1693607211977,112.6,19.255,19.247,112.6]
[1693607216887,112.6,19.257,19.25,112.6]
[1693607217387,112.6,19.264,19.256,112.6]
[1693607221989,112.6,19.263,19.255,112.6]
[1693607224592,112.6,19.265,19.258,112.6]
[1693607231995,112.6,19.266,19.259,112.6]
[1693607236802,112.6,19.267,19.26,112.6]
[1693607237899,113.05454546,19.27,19.263,112.6]
[1693607238101,112.6,19.27,19.263,112.6]
[1693607241999,112.6,19.271,19.264,112.6]
[1693607242199,0.45454546,19.27,19.264,112.6]
[1693607243698,0.45454546,19.27,19.261,500.0]
[1693607243902,112.6,19.278,19.269,112.6]
[1693607245003,112.6,19.275,19.267,112.6]
[1693607252010,112.6,19.274,19.266,112.6]
[1693607257216,112.6,19.277,19.269,112.6]
[1693607258410,0.79524304,19.272,19.269,112.6]
[1693607271928,0.79524304,19.272,19.271,112.6]
[1693607273731,112.6,19.279,19.271,112.6]
[1693607276632,112.6,19.276,19.268,112.6]
[1693607281231,112.6,19.276,19.272,0.06254027]
[1693607292043,112.6,19.274,19.272,0.06254027]
[1693607300054,112.6,19.273,19.272,0.06254027]
[1693607311966,112.6,19.274,19.272,0.06254027]
[1693607321972,112.6,19.273,19.272,0.06254027]
[1693607326679,68.0371368,19.281,19.272,0.06254027]
[1693607333483,68.0371368,19.281,19.268,0.12510556]
[1693607333685,500.0,19.277,19.268,0.12510556]
[1693607333986,0.45454546,19.276,19.268,0.12510556]
[1693607339681,0.45454546,19.275,19.268,0.12510556]
[1693607339886,0.45454546,19.28,19.268,0.12510556]
[1693607340488,68.0371368,19.281,19.268,0.12510556]
[1693607341487,68.0371368,19.281,19.261,500.0]
[1693607342589,68.0371368,19.281,19.271,0.06254351]
[1693607373619,25.9336,19.28,19.271,0.06254351]
[1693607374119,500.0,19.277,19.267,0.12511205]
[1693607374318,0.45454546,19.276,19.263,0.18770563]
[1693607380917,42.72661191,19.276,19.263,0.18770563]
[1693607382828,42.27206645,19.276,19.263,0.18770563]
[1693607383028,500.0,19.277,19.263,0.18770563]
[1693607383419,25.93899,19.276,19.263,0.18770563]
[1693607384825,25.93899,19.276,19.251,0.37563673]
[1693607385030,500.0,19.268,19.251,0.37563673]
[1693607386327,500.0,19.268,19.248,21.3618]
[1693607386522,500.45454546,19.268,19.248,21.3618]
[1693607386725,500.45454546,19.268,19.241,500.0]
[1693607386726,500.0,19.268,19.241,500.0]
[1693607387030,500.0,19.268,19.242,44.96445718]
[1693607387432,155.8,19.274,19.263,0.06256946]
[1693607387629,500.0,19.268,19.263,0.06256946]
[1693607387819,500.0,19.268,19.259,0.12516396]
[1693607388021,500.0,19.268,19.255,0.18778351]
[1693607390737,1.90917598,19.267,19.255,0.18778351]
[1693607390930,29.41714282,19.267,19.251,0.25042812]
[1693607391136,27.50796684,19.267,19.251,0.25042812]
[1693607396132,14.0889,19.266,19.251,0.25042812]
[1693607399044,14.0889,19.266,19.247,0.3130978]
[1693607399045,500.0,19.258,19.247,0.3130978]
[1693607399244,0.45454546,19.257,19.247,0.3130978]
[1693607400348,0.45454546,19.257,19.237,20.6871]
[1693607401543,0.45454546,19.257,19.221,500.0]
[1693607401544,500.0,19.248,19.221,500.0]
[1693607401745,0.45454546,19.247,19.23,20.6871]
[1693607403149,500.0,19.248,19.23,20.6871]
[1693607403348,0.45454546,19.247,19.23,20.6871]
[1693607403550,0.45454546,19.248,19.23,20.6871]
[1693607403946,500.45454546,19.248,19.23,20.6871]
[1693607404246,156.25454546,19.247,19.221,541.66320166]
[1693607404447,156.25454546,19.247,19.222,31.7203555]
[1693607404448,155.8,19.247,19.222,31.7203555]
[1693607404647,156.25454546,19.247,19.223,9.5553555]
[1693607405348,0.45454546,19.247,19.223,9.5553555]
[1693607406141,0.45454546,19.248,19.223,9.5553555]
[1693607407448,500.45454546,19.248,19.223,9.5553555]
[1693607407749,0.45454546,19.247,19.223,9.5553555]
[1693607419152,156.25454546,19.247,19.223,9.5553555]
[1693607419550,169.45744546,19.247,19.223,9.5553555]
[1693607428660,156.25454546,19.247,19.223,9.5553555]
[1693607428861,13.65554546,19.246,19.222,22.165]
[1693607429066,500.0,19.238,19.222,22.165]
[1693607429262,0.45454546,19.237,19.222,22.165]
[1693607429557,0.45454546,19.237,19.215,42.53485951]
[1693607429759,0.45454546,19.237,19.217,30.10183898]
[1693607429960,0.45454546,19.237,19.218,9.55603898]
[1693607430666,500.0,19.238,19.218,9.55603898]
[1693607430965,0.45454546,19.237,19.218,9.55603898]
[1693607431158,500.0,19.238,19.218,9.55603898]
[1693607431359,0.45454546,19.237,19.218,9.55603898]
[1693607433670,0.45454546,19.243,19.218,9.55603898]
[1693607433971,25.98482,19.242,19.218,9.55603898]
[1693607434168,0.45454546,19.241,19.218,9.55603898]
[1693607434570,25.98752,19.24,19.218,9.55603898]
[1693607434771,500.0,19.238,19.218,9.55603898]
[1693607434972,0.45454546,19.237,19.218,9.55603898]
[1693607436168,0.45454546,19.237,19.217,20.5458]
[1693607437379,0.45454546,19.237,19.218,9.55710071]
[1693607438376,0.45454546,19.237,19.217,20.5458]
[1693607439177,25.99292,19.236,19.217,20.5458]
[1693607450086,26.44746546,19.236,19.217,20.5458]
[1693607456387,26.44746546,19.236,19.218,9.55649474]
[1693607456586,25.99292,19.236,19.219,9.55607902]
[1693607456781,25.99292,19.236,19.221,500.0]
[1693607458588,41.53510139,19.237,19.221,500.0]
[1693607458785,13.2075,19.243,19.221,500.0]
[1693607458989,39.19097,19.243,19.221,500.0]
[1693607459191,25.98347,19.243,19.221,500.0]
[1693607460292,67.28976224,19.243,19.221,500.0]
[1693607466493,41.30629224,19.243,19.221,500.0]
[1693607466694,0.45454546,19.245,19.221,500.0]
[1693607467793,26.43531546,19.245,19.221,500.0]
[1693607467988,0.45454546,19.244,19.221,500.0]
[1693607470195,0.45454546,19.244,19.221,540.69474778]
[1693607474398,0.45454546,19.244,19.222,9.55484382]
[1693607474597,0.45454546,19.244,19.221,540.69474778]
[1693607474799,0.45454546,19.244,19.222,9.5548396]
[1693607475097,0.45454546,19.244,19.221,540.69474778]
[1693607475293,0.45454546,19.244,19.222,9.55533721]
[1693607475500,0.45454546,19.244,19.221,540.69474778]
[1693607476696,0.45454546,19.244,19.222,183.34649248]
[1693607476901,0.45454546,19.244,19.223,9.55431109]
[1693607477093,0.45454546,19.244,19.222,183.34173793]
[1693607477397,0.45454546,19.244,19.221,540.69474778]
[1693607477398,0.45454546,19.244,19.223,9.55365752]
[1693607477592,0.45454546,19.244,19.222,173.7859613]
[1693607477796,0.45454546,19.244,19.223,9.55360801]
[1693607477992,0.45454546,19.244,19.222,173.78431245]
[1693607478199,0.45454546,19.244,19.223,9.5541019]
[1693607478399,0.45454546,19.244,19.224,20.5456]
[1693607509426,25.98347,19.243,19.224,20.5456]
[1693607510833,0.45454546,19.242,19.224,20.5456]
[1693607511734,26.43936546,19.242,19.224,20.5456]
[1693607511939,25.98482,19.242,19.224,20.5456]
[1693607518441,25.98617,19.241,19.224,20.5456]
[1693607535542,42.54885654,19.242,19.224,20.5456]
[1693607535748,0.45454546,19.244,19.224,20.5456]
[1693607547659,26.43666546,19.244,19.224,20.5456]
[1693607547859,0.45454546,19.243,19.224,20.5456]
[1693607548059,28.92608018,19.243,19.224,20.5456]
[1693607548251,26.43936546,19.242,19.224,20.5456]
[1693607548957,25.98617,19.241,19.224,20.5456]
[1693607561266,67.4214274,19.241,19.224,20.5456]
[1693607563972,500.0,19.239,19.224,20.5456]
[1693607564268,0.45454546,19.238,19.224,20.5456]
[1693607564675,0.45454546,19.238,19.225,21.7218]
[1693607567077,2.36667532,19.238,19.225,21.7218]
[1693607567271,0.45454546,19.237,19.225,21.7218]
[1693607569679,2.36678407,19.237,19.225,21.7218]
[1693607569876,0.45454546,19.236,19.225,21.7218]
[1693607570182,0.45454546,19.237,19.225,21.7218]
[1693607570877,2.36679689,19.237,19.225,21.7218]
[1693607571078,0.45454546,19.236,19.225,21.7218]
[1693607572188,25.99428,19.235,19.225,21.7218]
[1693607572686,500.0,19.229,19.201,500.0]
[1693607572888,0.45454546,19.228,19.212,20.4408]
[1693607573782,0.45454546,19.227,19.212,20.4408]
[1693607573986,0.45454546,19.226,19.212,20.4408]
[1693607574182,0.45454546,19.225,19.212,20.4408]
[1693607574387,0.45454546,19.229,19.212,20.4408]
[1693607575485,0.45454546,19.228,19.212,20.4408]
[1693607575683,0.45454546,19.227,19.212,20.4408]
[1693607575987,66.7226879,19.235,19.212,20.4408]
[1693607576189,25.99428,19.235,19.212,20.4408]
[1693607576390,25.99428,19.235,19.203,0.22727272]
[1693607576585,25.99428,19.235,19.203,183.79758529]
[1693607576892,25.99428,19.235,19.204,9.78869095]
[1693607577091,25.99428,19.235,19.211,500.0]
[1693607577793,25.99428,19.235,19.212,21.0098]
[1693607578392,25.99428,19.235,19.211,500.0]
[1693607578590,25.99428,19.235,19.212,21.0098]
[1693607578991,25.99428,19.235,19.211,500.0]
[1693607579692,25.99428,19.235,19.212,20.8065]
[1693607587298,25.99428,19.235,19.203,156.22727272]
[1693607587499,25.99428,19.235,19.204,183.80654772]
[1693607587701,68.4334059,19.235,19.211,500.0]
[1693607587895,25.99428,19.235,19.211,500.0]
[1693607588199,25.99428,19.235,19.212,22.0203]
[1693607588701,25.99428,19.235,19.211,500.0]
[1693607588999,25.99428,19.235,19.212,20.9447]
[1693607597905,500.0,19.23,19.212,20.9447]
[1693607598098,26.45693546,19.229,19.206,23.87762627]
[1693607598302,0.45454546,19.228,19.206,66.07003395]
[1693607598499,26.00509,19.227,19.206,23.87762627]
[1693607598703,0.45454546,19.226,19.206,23.87762627]
[1693607599405,0.45454546,19.226,19.202,20.2863]
[1693607601404,0.45454546,19.226,19.203,9.5647033]
[1693607601911,0.45454546,19.226,19.202,20.2863]
[1693607602204,0.45454546,19.226,19.203,9.56467912]
[1693607607311,0.45454546,19.226,19.202,20.2863]
[1693607608212,0.45454546,19.226,19.203,9.56465556]
[1693607608407,0.45454546,19.226,19.202,20.2863]
[1693607609011,26.00509,19.227,19.21,500.0]
[1693607609712,68.63984545,19.227,19.21,500.0]
[1693607612217,68.63984545,19.227,19.226,0.06268982]
[1693607618722,29.92552734,19.229,19.226,0.06268982]
[1693607618918,42.63891779,19.23,19.226,0.06268982]
[1693607619217,500.0,19.24,19.226,0.06268982]
[1693607619422,1.91198898,19.239,19.226,0.06268982]
[1693607623825,541.21540062,19.24,19.226,0.06268982]
[1693607624025,1.91196908,19.239,19.226,0.06268982]
[1693607626327,1.91196908,19.239,19.214,42.34339229]
[1693607626528,541.21540062,19.24,19.215,0.45454546]
[1693607626728,541.21540062,19.24,19.213,0.45454546]
[1693607626929,1.91196678,19.239,19.213,26.47858546]
[1693607627129,541.21540062,19.24,19.214,0.45454546]
[1693607627330,541.21540062,19.24,19.227,0.06268656]
[1693607633045,1.91196868,19.239,19.227,0.06268656]
[1693607633245,541.21540062,19.24,19.227,0.06268656]
[1693607637241,41.21540062,19.24,19.228,0.45454546]
[1693607637438,13.6685,19.242,19.228,0.45454546]
[1693607639549,55.14535906,19.242,19.228,0.45454546]
[1693607660765,55.14535906,19.242,19.227,0.06268656]
[1693607660766,500.0,19.241,19.227,0.06268656]
[1693607660965,1.91183863,19.24,19.227,0.06268656]
[1693607667371,1.91183863,19.24,19.219,0.45454546]
[1693607672571,1.91183863,19.24,19.22,0.45454546]
[1693607672770,1.91183863,19.24,19.214,0.45454546]
[1693607681673,155.8,19.239,19.214,0.45454546]
[1693607681873,1.91183863,19.238,19.215,0.45454546]
[1693607682080,190.32728156,19.238,19.213,0.45454546]
[1693607682378,1.91183863,19.237,19.213,0.45454546]
[1693607682774,20.7979,19.236,19.213,0.45454546]
[1693607683175,188.41544293,19.238,19.213,0.45454546]
[1693607683472,20.7979,19.235,19.213,0.45454546]
[1693607684077,188.41544293,19.238,19.213,0.45454546]
[1693607684277,20.7979,19.234,19.213,0.45454546]
[1693607684673,188.41544293,19.238,19.213,0.45454546]
[1693607684970,22.71031064,19.237,19.213,0.45454546]
[1693607685180,1.91241064,19.236,19.213,0.45454546]
[1693607691781,20.7979,19.237,19.213,0.45454546]
[1693607691981,1.91240876,19.236,19.213,0.45454546]
[1693607692182,20.7979,19.237,19.213,0.45454546]
[1693607692677,1.91240763,19.236,19.213,0.45454546]
[1693607693783,20.7979,19.237,19.213,0.45454546]
[1693607695083,20.7979,19.237,19.213,10.01377548]
[1693607695284,20.7979,19.237,19.214,26.47723546]
[1693607695484,20.7979,19.237,19.215,0.45454546]
[1693607696487,20.7979,19.237,19.22,500.0]
[1693607696682,20.7979,19.237,19.221,0.45454546]
[1693607696985,74.29615015,19.238,19.221,0.45454546]
[1693607697185,21.6723,19.236,19.221,0.45454546]
[1693607698380,21.6723,19.236,19.215,9.55871516]
[1693607698587,21.6723,19.236,19.216,0.45454546]
[1693607698785,21.6723,19.236,19.217,0.45454546]
[1693607698981,21.6723,19.236,19.218,0.45454546]
[1693607699186,21.6723,19.236,19.215,0.45454546]
[1693607708499,21.6723,19.236,19.216,0.45454546]
[1693607708797,21.6723,19.236,19.217,0.45454546]
[1693607708999,21.6723,19.236,19.213,0.45454546]
[1693607709300,21.6723,19.236,19.214,0.45454546]
[1693607709601,230.09615015,19.238,19.211,0.45454546]
[1693607709801,1.91240185,19.237,19.211,0.45454546]
[1693607710002,23.31860185,19.237,19.211,0.45454546]
[1693607710201,1.91240185,19.236,19.211,0.45454546]
[1693607714507,21.4062,19.237,19.211,0.45454546]
[1693607714705,21.4062,19.237,19.212,26.0254]
[1693607714898,21.4062,19.237,19.213,0.45454546]
[1693607724508,21.4062,19.237,19.214,26.02269]
[1693607724701,21.4062,19.237,19.215,0.45454546]
[1693607725208,21.4062,19.237,19.22,500.0]
[1693607725408,21.4062,19.237,19.221,0.45454546]
[1693607725611,74.29615015,19.238,19.221,0.45454546]
[1693607725909,21.8242,19.236,19.221,0.45454546]
[1693607738317,21.8242,19.236,19.221,41.57304857]
[1693607738518,21.8242,19.236,19.222,0.45454546]
[1693607746122,21.8242,19.236,19.222,156.45454546]
[1693607746423,41.47685906,19.242,19.223,0.45454546]
[1693607746721,20.3606,19.241,19.223,0.45454546]
[1693607747422,20.3606,19.241,19.227,0.06268655]
[1693607750717,20.3606,19.241,19.228,0.45454546]
[1693607751422,20.3606,19.241,19.229,500.0]
[1693607751620,20.3606,19.241,19.23,0.45454546]
[1693607751921,312.39582836,19.246,19.23,0.45454546]
[1693607752221,21.2125,19.24,19.23,0.45454546]
[1693607752625,21.2125,19.24,19.23,26.45558546]
[1693607752823,21.2125,19.24,19.231,0.45454546]
[1693607758833,21.2125,19.24,19.232,26.45287546]
[1693607759035,271.64283825,19.246,19.232,25.99833]
[1693607759334,20.7436,19.245,19.232,25.99833]
[1693607768938,20.7436,19.245,19.233,156.0]
[1693607769143,20.7436,19.245,19.234,25.99563]
[1693607769343,575.0,19.26,19.234,25.99563]
[1693607769545,23.24675221,19.253,19.234,25.99563]
[1693607769841,21.336,19.253,19.234,25.99563]
[1693607770039,575.0,19.26,19.234,25.99563]
[1693607770239,21.3591,19.252,19.234,25.99563]
[1693607773843,21.3591,19.252,19.231,0.45454546]
[1693607780055,21.3591,19.252,19.239,500.0]
[1693607780357,21.3591,19.252,19.24,0.45454546]
[1693607780549,41.93762993,19.258,19.24,0.45454546]
[1693607780750,20.845,19.257,19.24,26.44206546]
[1693607780953,20.845,19.257,19.241,0.45454546]
[1693607781256,0.22727272,19.269,19.241,0.45454546]
[1693607781457,20.845,19.256,19.241,0.45454546]
[1693607781758,0.22727272,19.269,19.241,0.45454546]
[1693607781955,20.845,19.255,19.241,0.45454546]
[1693607782151,0.22727272,19.269,19.241,0.45454546]
[1693607782348,20.845,19.254,19.241,0.45454546]
[1693607782549,32.61042842,19.261,19.241,0.45454546]
[1693607782755,20.1278,19.253,19.241,0.45454546]
[1693607787959,20.1278,19.253,19.242,25.98482]
[1693607793167,20.1278,19.253,19.249,112.41]
[1693607793565,112.41,19.256,19.249,112.41]
[1693607831186,112.41,19.255,19.248,112.41]
[1693607831987,112.41,19.253,19.246,112.41]
[1693607838591,112.41,19.256,19.249,112.41]
[1693607841992,112.41,19.255,19.248,112.41]
[1693607846193,112.41,19.254,19.247,112.41]
[1693607862002,112.41,19.255,19.248,112.41]
[1693607877518,112.41,19.255,19.247,112.41]
[1693607891528,245.23846967,19.269,19.25,112.41]
[1693607891732,112.41,19.264,19.256,112.41]
[1693607891928,112.41,19.266,19.258,112.41]
[1693607901937,112.41,19.265,19.257,112.41]
[1693607908043,112.41,19.262,19.255,112.41]
[1693607908542,112.41,19.259,19.252,112.41]
[1693607912849,112.41,19.262,19.255,112.41]
[1693607919057,112.41,19.262,19.258,112.41]
[1693607919263,112.41,19.267,19.261,112.41]
[1693607921565,112.41,19.267,19.26,112.41]
[1693607922065,112.41,19.268,19.261,112.41]
[1693607927273,112.41,19.271,19.264,112.41]
[1693607932073,112.41,19.273,19.266,112.41]
[1693607937680,112.41,19.273,19.262,0.45454546]
[1693607937982,52.08446255,19.276,19.267,112.41]
[1693607937983,112.41,19.275,19.267,112.41]
[1693607941986,112.41,19.274,19.267,112.41]
[1693607956294,112.41,19.274,19.266,112.41]
[1693607967507,30.84246255,19.276,19.27,112.41]
[1693607976616,133.1925,19.277,19.27,112.41]
[1693607977315,112.41,19.277,19.27,112.41]
[1693607981719,112.41,19.277,19.27,154.26892115]
[1693607981920,112.41,19.278,19.271,112.41]
[1693607991925,112.41,19.279,19.272,112.41]
[1693607998340,163.80891944,19.281,19.274,112.41]
[1693607999244,142.02061944,19.281,19.274,112.41]
[1693607999438,112.41,19.284,19.277,112.41]
[1693608001245,20.4516,19.291,19.27,0.45454546]
[1693608001246,112.41,19.281,19.274,112.41]
[1693608011647,112.41,19.276,19.27,42.07468879]
[1693608011848,112.41,19.276,19.269,112.41]
[1693608012747,112.41,19.276,19.269,153.29335925]
[1693608018047,112.41,19.279,19.271,112.41]
[1693608021956,132.8498,19.28,19.273,112.41]
[1693608027553,112.41,19.283,19.276,112.41]
[1693608030463,112.41,19.277,19.27,112.41]
[1693608032063,112.41,19.274,19.267,112.41]
[1693608032262,112.41,19.274,19.267,154.62161825]
[1693608039565,112.41,19.272,19.265,112.41]
[1693608042259,21.3916,19.279,19.267,112.41]
[1693608042260,112.41,19.274,19.267,112.41]
[1693608063678,63.39159999,19.279,19.263,0.45454546]
[1693608063679,112.41,19.271,19.264,112.41]
[1693608069479,112.41,19.265,19.258,112.41]
[1693608071988,112.41,19.263,19.256,177.93421755]
[1693608076991,112.41,19.26,19.253,112.86454546]
[1693608077186,41.125649,19.274,19.249,112.41]
[1693608077187,112.41,19.257,19.249,112.41]
[1693608077488,112.41,19.255,19.247,112.41]
[1693608078590,112.41,19.257,19.25,112.41]
[1693608079489,112.41,19.257,19.25,138.38402]
[1693608081994,112.41,19.266,19.256,112.41]
[1693608082293,112.41,19.266,19.258,112.41]
[1693608092099,112.41,19.267,19.26,112.41]
[1693608101902,112.41,19.267,19.259,41.0051921]
[1693608102205,112.41,19.268,19.261,112.41]
[1693608141944,112.41,19.269,19.262,112.41]
[1693608145540,112.41,19.269,19.264,0.74405777]
[1693608145747,0.71898402,19.267,19.264,0.74405777]
[1693608156350,0.71898402,19.267,19.264,113.15405777]
[1693608156556,244.29866331,19.28,19.264,113.15405777]
[1693608156557,112.41,19.275,19.266,112.41]
[1693608156755,112.41,19.275,19.267,112.41]
[1693608166764,112.41,19.271,19.269,0.72177267]
[1693608170869,112.41,19.27,19.265,0.45454546]
[1693608171063,0.72107699,19.272,19.259,25.96188]
[1693608171064,112.41,19.266,19.259,25.96188]
[1693608171968,112.41,19.265,19.259,25.96188]
[1693608172270,112.41,19.266,19.259,138.37188]
[1693608173462,112.41,19.266,19.259,112.41]
[1693608181973,113.21810509,19.264,19.261,0.77552425]
[1693608182875,112.41,19.264,19.257,112.41]
[1693608186980,112.41,19.264,19.261,0.18772485]
[1693608187875,21.2541,19.268,19.261,0.18772485]
[1693608187876,112.41,19.263,19.261,0.18772485]
[1693608196683,112.41,19.263,19.256,178.62476147]
[1693608201981,21.2541,19.268,19.258,112.41]
[1693608201982,112.41,19.266,19.258,112.41]
[1693608204487,112.41,19.266,19.265,0.12512486]
[1693608241526,112.41,19.266,19.264,0.74313801]
[1693608241922,112.41,19.265,19.264,0.74313801]
[1693608261948,112.41,19.266,19.264,0.74313801]
[1693608264652,112.41,19.265,19.264,0.74313801]
[1693608316194,112.41,19.265,19.261,0.18772484]
[1693608316485,112.41,19.262,19.261,0.18772484]
[1693608336800,112.41,19.264,19.261,0.18772484]
[1693608346600,112.41,19.264,19.257,112.41]
[1693608349000,368.59001143,19.278,19.257,500.0]
[1693608349207,112.41,19.273,19.265,112.41]
[1693608349402,112.41,19.276,19.268,112.41]
[1693608357909,157.43456418,19.278,19.271,112.41]
[1693608358301,112.41,19.278,19.271,112.41]
[1693608358500,112.41,19.281,19.274,112.41]
[1693608359010,112.41,19.281,19.274,112.86454546]
[1693608359312,112.41,19.281,19.274,112.41]
[1693608360708,112.41,19.281,19.274,138.35168]
[1693608362010,112.41,19.283,19.276,112.41]
[1693608365611,112.41,19.28,19.274,25.94168]
[1693608365816,112.41,19.28,19.273,112.41]
[1693608368217,112.41,19.282,19.275,112.41]
[1693608372023,112.41,19.28,19.273,112.41]
[1693608378727,112.41,19.28,19.274,25.94168]
[1693608382028,21.399,19.288,19.276,112.41]
[1693608382029,112.41,19.283,19.276,112.41]
[1693608389638,112.41,19.286,19.279,112.41]
[1693608397235,112.41,19.286,19.279,138.34495]
[1693608397743,133.809,19.288,19.281,112.41]
[1693608401543,112.41,19.291,19.284,112.41]
[1693608401741,112.41,19.294,19.287,112.41]
[1693608412059,112.41,19.294,19.286,112.41]
[1693608415762,112.41,19.29,19.283,112.41]
[1693608420568,112.41,19.29,19.278,0.45454546]
[1693608420569,112.41,19.284,19.277,112.41]
[1693608426174,112.41,19.282,19.275,112.41]
[1693608428471,112.41,19.285,19.277,112.41]
[1693608432080,112.41,19.287,19.28,112.41]
[1693608432877,112.41,19.288,19.281,112.41]
[1693608441984,112.41,19.286,19.279,112.41]
[1693608456201,112.41,19.283,19.276,112.41]
[1693608462007,112.41,19.283,19.275,112.41]
[1693608462909,112.41,19.282,19.275,112.41]
[1693608464902,112.41,19.285,19.278,112.41]
[1693608471912,112.41,19.284,19.277,112.41]
[1693608485225,112.41,19.284,19.277,153.65416796]
[1693608492826,112.41,19.282,19.277,41.24416796]
[1693608493129,112.41,19.282,19.275,112.41]
[1693608497527,112.41,19.277,19.269,112.41]
[1693608497926,20.609,19.287,19.267,0.06255599]
[1693608497927,112.41,19.274,19.267,0.06255599]
[1693608498432,112.41,19.271,19.267,0.06255599]
[1693608500726,112.41,19.273,19.267,0.06255599]
[1693608510539,112.41,19.275,19.268,112.41]
[1693608519453,112.41,19.279,19.271,112.41]
[1693608521147,132.5968,19.282,19.275,112.41]
[1693608542179,132.5968,19.282,19.274,112.41]
[1693608552084,112.41,19.281,19.274,112.41]
[1693608558895,112.41,19.281,19.274,153.41777604]
[1693608562096,112.41,19.28,19.274,41.00777604]
[1693608562394,112.41,19.28,19.273,112.41]
[1693608563290,112.41,19.28,19.27,0.45454546]
[1693608563291,112.41,19.275,19.267,112.47255562]
[1693608571398,112.41,19.275,19.267,112.41]
[1693608571999,112.41,19.273,19.266,154.63406638]
[1693608572298,112.41,19.273,19.266,112.41]
[1693608572492,0.06255563,19.267,19.266,112.41]
[1693608582105,0.06255563,19.267,19.264,112.41]
[1693608586507,112.41,19.271,19.264,112.41]
[1693608587403,0.06255563,19.267,19.264,112.41]
[1693608630443,0.06255563,19.267,19.264,138.36514]
[1693608643953,0.06255563,19.267,19.265,112.41]
[1693608646456,112.41,19.272,19.265,112.41]
[1693608647663,0.06255563,19.267,19.265,112.41]
[1693608658867,0.06255563,19.267,19.265,153.53921639]
[1693608663370,0.06255563,19.267,19.265,112.41]
[1693608664866,0.06255563,19.267,19.264,25.95514]
[1693608665268,112.41,19.265,19.263,0.12513627]
[1693608665467,112.41,19.265,19.259,0.18774197]
[1693608671972,112.41,19.263,19.259,0.18774197]
[1693608675376,112.41,19.261,19.259,0.18774197]
[1693608679176,112.41,19.261,19.254,112.41]
[1693608679177,112.41,19.26,19.253,40.97196261]
[1693608679380,112.41,19.256,19.251,0.31302855]
[1693608680174,112.41,19.253,19.251,0.31302855]
[1693608682579,112.41,19.253,19.246,112.41]
[1693608683578,112.41,19.25,19.243,112.84841548]
[1693608687279,112.41,19.253,19.246,112.41]
[1693608695989,20.2777,19.266,19.249,112.41]